[Event "ROM-GER Kings"]
[Site "Medias"]
[Date "2015.11.01"]
[Round "3.1"]
[White "Wagner, Dennis"]
[Black "Lupulescu, Constantin"]
[Result "1-0"]
[ECO "D37"]
[WhiteElo "2575"]
[BlackElo "2626"]
[Annotator "Bulmaga,I"]
[PlyCount "77"]
[EventDate "2015.10.30"]
[EventType "schev"]
[EventRounds "5"]
[EventCountry "ROU"]
[SourceTitle "CBM 169"]
[Source "ChessBase"]
[SourceDate "2015.11.10"]
[SourceVersion "1"]
[SourceVersionDate "2015.11.10"]
[SourceQuality "1"]
[WhiteTeam "Germany"]
[BlackTeam "Romania"]
[WhiteTeamCountry "GER"]
[BlackTeamCountry "ROU"]
[TimeControl "40/5400+30:1800+30"]

1. d4 Nf6 2. c4 e6 3. Nf3 d5 4. Nc3 Nbd7 5. Bf4 dxc4 6. e3 Nd5 7. Bxc4 N7b6 8.
Nxd5 exd5 9. Bd3 Bb4+ 10. Nd2 Bd6 11. Bxd6 Qxd6 12. O-O O-O 13. Qc2 {Die erste
kritische Stellung.[#]} g6 $6 (13... h6 $5) 14. f4 $5 {Eine aggressive
Fortsetzung, mit der Weiß den letzten Zug von Schwarz ausnutzen will.} Nd7 15.
Rac1 c6 16. f5 Nf6 {[#]} 17. Rf3 (17. Nf3 $5 {Behält sich weiter die
Möglichkeit vor, den weißfeldrigen Läufer auf d3 zu opfern und bringt eine
weitere Figur zum Königsflügel.}) (17. fxg6 $6 fxg6 18. Bxg6 $2 Ng4 19. Bxh7+
Kg7 20. Nf3 Nxe3 $17) 17... Kh8 (17... g5 $1 {war die beste
Verteidigungsmöglichkeit für Schwarz!} 18. Rg3 h6 $13) (17... Kg7 $5 18. Rcf1
Bd7 19. Rg3 Nh5 20. Rh3 Nf6 21. Nf3 $13) 18. fxg6 hxg6 $2 (18... fxg6 $5 19.
Bxg6 Bg4 $13) 19. Bxg6 $1 $18 {[#]} Bg4 20. Rf4 Qe7 21. Rcf1 fxg6 22. Qxg6
Qxe3+ 23. R1f2 Nh7 24. Qxg4 Rxf4 25. Qxf4 Re8 26. h4 Qe1+ 27. Rf1 Qe2 28. Nf3
Qe4 29. Ne5 Qxf4 30. Rxf4 c5 31. Nf7+ Kg7 32. Nd6 Re2 33. dxc5 Rxb2 34. Rf7+
Kg6 35. h5+ Kh6 36. Rxb7 Rc2 37. g4 Nf6 38. Nf7+ Kg7 39. c6 1-0

[Event "ROM-GER Kings"]
[Site "Medias"]
[Date "2015.11.03"]
[Round "5.5"]
[White "Wagner, Dennis"]
[Black "Parligras, Mircea Emilian"]
[Result "1/2-1/2"]
[ECO "D37"]
[WhiteElo "2575"]
[BlackElo "2586"]
[Annotator "CB"]
[PlyCount "81"]
[EventDate "2015.10.30"]
[EventType "schev"]
[EventRounds "5"]
[EventCountry "ROU"]
[SourceTitle "CBM 169"]
[Source "ChessBase"]
[SourceDate "2015.11.10"]
[SourceVersion "1"]
[SourceVersionDate "2015.11.10"]
[SourceQuality "1"]
[WhiteTeam "Germany"]
[BlackTeam "Romania"]
[WhiteTeamCountry "GER"]
[BlackTeamCountry "ROU"]
[TimeControl "40/5400+30:1800+30"]

1. d4 Nf6 2. c4 e6 3. Nf3 d5 4. Nc3 Be7 5. Bf4 O-O 6. Rc1 (6. e3 {ist die
Hauptfortsetzung, die zu einer bekannten Stellung führt.}) 6... c5 7. dxc5 {
[#]} dxc4 (7... Bxc5 {wird auf hohem Niveau häufiger gespielt und wurde
bereits von Spielern wie Jakovenko, Grischuk, Gelfand und Adams angewandt.} 8.
e3 Nc6 $13) 8. e3 Nd5 9. Bxc4 Nxf4 10. exf4 Qxd1+ 11. Kxd1 Bxc5 12. Ke2 Nd7 (
12... Nc6 $6 13. Rhd1 {und Schwarz hat Schwierigkeiten, seine Figuren zu
entwickeln.}) 13. Rhd1 {Aus der Eröffnung heraus ist ein Endspiel entstanden,
und ich glaube, dass Weiß hier besser steht. Weiß hat seine Entwicklung
beendet und hat die Feldern und Linien im Zentrum besser unter Kontrolle.
Schwarz hingegen hat Probleme, seine Entwicklung zu beenden.} Nf6 14. Ne5 b6
15. Na4 Be7 16. Nc6 Re8 17. Nxe7+ (17. b4 $6 Bb7 18. b5 Bf8 $15 {Der weiße
Springer auf a4 steht leicht deplatziert.}) 17... Rxe7 18. Rd8+ Re8 19. Rxe8+
Nxe8 20. Bd3 Bb7 {Schwarz ist es gelungen, seine Entwicklung zu beenden und
konnte außerdem ein paar Figuren tauschen. Der natürlichste Plan für ihn
besteht jetzt darin, den König nach e7 zu bringen und gäbe es die
"40-Züge-Regel" nicht, könnte man dann getrost Remis machen.} 21. g3 Kf8 22.
Rc2 Ke7 23. Nc3 Nd6 24. Nb5 Nxb5 25. Bxb5 Rc8 26. Rxc8 Bxc8 27. Ke3 Kd6 28. Kd4
a5 29. a3 f6 30. Bd3 h6 31. h4 Bb7 32. Bc4 Bc6 33. b4 axb4 34. axb4 Bb7 35. Bb3
Ba6 36. Ba2 Be2 37. Bb3 Bf1 38. Ba2 Bg2 39. Bc4 Bf3 40. Bb3 Bb7 41. Bc4 {
Diese Partie war theoretisch interessant. Weiß hat 6.Tc1 versucht und Schwarz
gelang es, diese Variante auf interessante Weise zu neutralisieren.} 1/2-1/2

[Event "Khanty-Mansiysk FIDE GP (Women)"]
[Site "Khanty-Mansiysk"]
[Date "2014.04.11"]
[Round "3"]
[White "Girya, Olga"]
[Black "Muminova, Nafisa"]
[Result "1/2-1/2"]
[ECO "D37"]
[WhiteElo "2450"]
[BlackElo "2321"]
[Annotator "ChessBase Website"]
[PlyCount "71"]
[EventDate "2014.04.09"]
[EventType "tourn"]
[EventRounds "11"]
[EventCountry "RUS"]
[EventCategory "10"]
[SourceTitle "CBM 160"]
[Source "ChessBase"]
[SourceDate "2014.05.15"]
[SourceVersion "1"]
[SourceVersionDate "2014.05.15"]
[SourceQuality "1"]
[TimeControl "40/5400+30:1800+30"]
[WhiteClock "1:30:00"]
[BlackClock "1:30:00"]

1. d4 {[%emt 0:00:00]} e6 {[%emt 0:00:00]} 2. Nf3 {[%emt 0:00:34]} Nf6 {
[%emt 0:00:17]} 3. c4 {[%emt 0:00:05]} d5 {[%emt 0:00:10]} 4. Nc3 {[%emt 0:00:
05]} Be7 {[%emt 0:00:16]} 5. Bf4 {[%emt 0:04:41]} O-O {[%emt 0:00:44]} 6. e3 {
[%emt 0:00:04]} Nbd7 {[%emt 0:00:26]} 7. c5 {[%emt 0:01:45]} c6 {[%emt 0:00:14]
} 8. Bd3 {[%emt 0:10:25]} b6 {[%emt 0:00:35]} 9. b4 {[%emt 0:00:30]} a5 {
[%emt 0:00:14]} 10. a3 {[%emt 0:01:28]} Bb7 {[%emt 0:00:39]} (10... Ba6 11.
Bxa6 Rxa6 12. b5 cxb5 13. c6 Qc8 14. c7 b4 15. Nb5 a4 16. Rc1 Ne4 17. Ng5 Ndf6
18. Nxe4 Nxe4 19. f3 Ra5 20. Qe2 Qd7 21. fxe4 Rc8 22. exd5 exd5 23. axb4 Rxb5
24. O-O Rxb4 25. Qa6 h6 26. Rc6 Bg5 27. Bxg5 hxg5 28. Rfc1 Rc4 29. R1xc4 dxc4
30. Qxb6 a3 31. Rxc4 a2 32. Qa5 Qe6 33. Qxa2 Rxc7 34. Qa8+ Kh7 35. Rxc7 Qxe3+
36. Kf1 Qf4+ 37. Qf3 Qxc7 38. Qh5+ Kg8 39. Qxg5 Qc4+ 40. Kf2 {Aronian,L (2795)
-Adams,M (2753) Bilbao 2013 1/2-1/2}) 11. O-O {[%emt 0:08:20]} Qc8 {[%emt 0:00:
15]} 12. h3 {[%emt 0:09:34]} h6 $146 {[%emt 0:01:42]} (12... Ba6 13. Rb1 Bxd3
14. Qxd3 axb4 15. axb4 Re8 16. Rfc1 b5 17. Bh2 Bd8 18. Nd2 e5 19. e4 Ra3 20.
dxe5 Nxe5 21. Qd4 Bc7 22. f4 Nc4 23. exd5 Nxd5 24. Nxc4 Rxc3 25. Rxc3 Nxc3 26.
Qxc3 bxc4 27. Qxc4 {1/2-1/2 (27) Iljin,A (2548)-Zhou,W (2530) Moscow 2008}) 13.
Qc2 {[%emt 0:05:15]} Ba6 {[%emt 0:00:20]} 14. Bxa6 {[%emt 0:01:01]} Rxa6 {
[%emt 0:00:11]} 15. Rab1 {[%emt 0:00:12] White's Opening pressure paid off as
Girya won a pawn, but it was not for free. Black had insufficient compensation
for the missing foot soldier but she retained drawing chances as her pieces
were rather active.} axb4 {[%emt 0:01:48]} 16. axb4 {[%emt 0:00:14]} Qb7 {
[%emt 0:00:37]} 17. Rfc1 {[%emt 0:06:37]} Rfa8 {[%emt 0:01:16]} 18. b5 {
[%emt 0:08:08]} Ra5 {[%emt 0:22:56]} 19. bxc6 {[%emt 0:00:49]} Qxc6 {[%emt 0:
00:06]} 20. cxb6 {[%emt 0:06:40]} Nxb6 {[%emt 0:10:12]} 21. Nxd5 {[%emt 0:03:
53]} Qxd5 {[%emt 0:00:20]} 22. Rxb6 {[%emt 0:00:07]} Ne4 {[%emt 0:07:10]} 23.
Rcb1 {[%emt 0:04:33]} Ra2 {[%emt 0:05:48]} 24. Rb8+ {[%emt 0:01:26]} Kh7 {
[%emt 0:00:54]} 25. Qc8 {[%emt 0:02:33]} Bd8 {[%emt 0:05:41]} 26. Rxa8 {
[%emt 0:02:04]} Rxa8 {[%emt 0:00:08]} 27. Qc2 {[%emt 0:02:26]} Ra2 {[%emt 0:02:
24]} 28. Rb2 {[%emt 0:01:27]} Ra1+ {[%emt 0:00:08]} 29. Kh2 {[%emt 0:01:27]} f5
{[%emt 0:03:43]} 30. Ne5 {[%emt 0:05:22]} Bh4 {[%emt 0:06:10]} 31. Nd3 {
[%emt 0:00:46]} Qa5 {[%emt 0:08:03]} 32. g3 $2 {[%emt 0:08:13][%csl Rh2] Girya
underestimated her opponent's position with the move 33.g3? with exposed her
king to an unusual tactic that Muminova exploited perfectly. This newfound
counterplay forced a repetition and the game ended in a draw, which is not
what Girya wanted.} (32. Qc6 {[%csl Re6]}) 32... Qa8 {[%emt 0:05:46]} 33. Rb1 {
[%emt 0:04:29]} Ra2 {[%emt 0:05:19]} 34. Rb2 {[%emt 0:00:51]} Ra1 {[%emt 0:00:
05]} 35. Rb1 {[%emt 0:00:02]} Ra2 {[%emt 0:00:04]} 36. Rb2 {[%emt 0:00:59]}
1/2-1/2

[Event "Candidates Tournament"]
[Site "Khanty-Mansiysk"]
[Date "2014.03.19"]
[Round "6"]
[White "Topalov, Veselin"]
[Black "Kramnik, Vladimir"]
[Result "1-0"]
[ECO "D37"]
[WhiteElo "2785"]
[BlackElo "2787"]
[Annotator "Marin,M"]
[PlyCount "81"]
[EventDate "2014.03.13"]
[EventType "tourn"]
[EventRounds "14"]
[EventCountry "RUS"]
[EventCategory "21"]
[SourceTitle "CBM 160"]
[Source "ChessBase"]
[SourceDate "2014.05.15"]
[SourceVersion "1"]
[SourceVersionDate "2014.05.15"]
[SourceQuality "1"]
[TimeControl "40/7200:20/3600:900+30"]
[WhiteClock "1:26:36"]
[BlackClock "1:03:45"]

1. d4 {[%emt 0:00:03]} Nf6 {[%emt 0:00:11]} 2. c4 {[%emt 0:00:05]} e6 {[%emt 0:
00:06]} 3. Nf3 {[%emt 0:00:04]} d5 {[%emt 0:00:03]} 4. Nc3 {[%emt 0:00:04]} Be7
{[%emt 0:00:21]} 5. Bf4 {[%emt 0:00:10]} O-O {[%emt 0:00:11]} 6. e3 {[%emt 0:
00:03]} Nbd7 {[%emt 0:00:05]} 7. c5 {[%emt 0:00:04] A very direct approach and
the most popular one.} Nh5 {[%emt 0:00:14] The most principled way to question
the effectiveness of the last move. Both players had had this position before,
so they must have both known what they were doing.} (7... c6 8. h3 {0-1 (41)
Bacrot,E (2749)-Aronian,L (2801) Warsaw 2013 CBM 158 [Krasenkow,M]}) (7... Ne4
8. Qc2 f5 {1-0 (48) Topalov,V (2752)-Giri,A (2711) Istanbul 2012 CBM 151 
[Krasenkow,M]}) 8. Be5 $5 {[%emt 0:00:04] Following his own path and deviating
from that which was supposedly the most familiar to Kramnik.} (8. Bd3 Nxf4 9.
exf4 b6 10. b4 a5 11. a3 c6 12. O-O Qc7 13. g3 Ba6 14. Bxa6 Rxa6 15. Qe2 Rfa8
16. b5 $1 (16. Rab1 {Radjabov,T (2744)-Kramnik,V (2785) Kazan 2011 CBM 143 
[Marin,M] (1/2-1/2, 39)}) 16... cxb5 17. Nxd5 $1 {Aronian,L (2802)-Giri,A 
(2714) Porto Carras 2011 CBM 146 [Krasenkow,M] (1-0, 43)}) 8... c6 {[%emt 0:01:
01]} 9. Bd3 {[%emt 0:02:09] Clearly the most active developing move.} (9. Be2 {
is a bit too passive.} f6 10. Bg3 g6 ({The knight did not really need
defending yet. Black should have started his counterplay without delay:} 10...
e5 $1 11. b4 e4) 11. b4 e5 12. Qb3 Kh8 {Savchenko,B (2569)-Azarov,S (2585)
Voronezh 2008 (0-1, 36)} 13. b5 $5) (9. h3 {simply gives away a tempo, since
Black was going to take on e5 at some point anyway.} Nxe5 10. Nxe5 Nf6 11. Bd3
Nd7 12. Nxd7 Bxd7 13. O-O e5 $5 $132 {Krush,I (2472)-Zatonskih,A (2499) Saint
Louis 2011 (1-0, 37)}) 9... g6 {[%emt 0:03:43]} ({An old game by Topalov saw
the too straightforward} 9... f5 $6 10. b4 a6 11. h3 Nxe5 12. dxe5 f4 13. e4
$14 {Topalov,V (2707)-Campora,D (2526) Barcelona 2000 (1-0, 40)}) (9... f6 {
was played in a historic match, a long, long time ago, but deserves closer
investigation.} 10. Bg3 (10. Ng5 {is interesting but may well lead only to a
draw:} fxe5 11. Qxh5 Bxg5 12. Qxh7+ Kf7 13. Qh5+ (13. Bg6+ Kf6 14. Bh5 Bh6 15.
g4 Ke7 16. g5 Rh8 17. Qg6 Qf8 {parries the attack.}) 13... Kg8 $11 14. Bh7+ $2
Kh8 15. Bg6+ Bh6 $19) 10... f5 {In a way, Black won a tempo over
Topalov-Camora above. But it could well turn that he has actually lost a tempo,
depending on the ulterior course of the game.} 11. Ng5 $2 {Steinitz,W-Chigorin,
M Nuremberg 1896 (1-0, 33)} (11. Be5 $5 {would really throw away a tempo.}) (
11. b4 $5 Nxg3 12. hxg3 g6 {[%cal Ge7f6,Ge6e5]} 13. b5 e5 $1) 11... Nxc5 $1 12.
dxc5 Nxg3 13. Nxe6 Bxe6 14. hxg3 Bxc5 $17) (9... Nxe5 10. Nxe5 g6 ({If} 10...
Nf6 11. Qc2 $14 {Black cannot free himself easily, since ...Nd7 would require
weakening the kingside with either ...h6 ot ...g6. This would be at least
risky given that White can still castle long.}) 11. h4 $36 Bxh4 $2 12. Qg4 Bf6
13. Rxh5 $18) 10. h4 {[%emt 0:00:07] In some cases, this could prove an useful
move for the attack, but clearing the h2-square for the bishop is at least as
important.} f5 $6 {[%emt 0:13:01] Allowing White to keep his bishop is
strategically risky.} ({True, embarking the following line against Topalov
would imply risks of a different nature.} 10... Nxe5 11. Nxe5 f6 12. Nxg6 hxg6
13. Qg4 f5 14. Qxg6+ Ng7 15. h5 {The engines are sceptical about this whole
plan, but Topalov has more than once proven he deals well with positions
offering unclear compensation. It was precisely this kind of anti-computer
chess that, basically avoiding his opponent's preparation, yielded him the
supreme crown in 2005.} Rf6 (15... Kh8 $5) 16. Qg5 Kf7 17. Ne2 Qh8 18. Nf4 Qh6
19. Qg3 Ke8 20. Be2 b6 21. Ng6 Bd7 22. b4 $44 {Black is under no immediate
threats, but freeing himself is almost impossible.}) 11. Bh2 $1 $14 {[%emt 0:
07:01]} b6 {[%emt 0:08:01]} (11... Bxh4 {is another form of risky material
grabbing.} 12. Nxh4 Qxh4 13. Qd2 e5 14. O-O-O $36 {[%csl Gg8]}) 12. b4 {
[%emt 0:04:03]} f4 {[%emt 0:03:44] Kramnik must have relied on this way of
neutralising the bishop, but since the h5-knight is doomed to defend the
f4-pawn, Black cannot really hope to be a piece up for practical reasons in
any other area of the board.} 13. O-O {[%emt 0:11:15]} a5 $2 {[%emt 0:31:37]
Playing with fire.} (13... bxc5 14. bxc5 e5 15. Qa4 Qc7 (15... Bb7 16. Rab1)
16. Rab1 $32 e4 $6 17. Nxe4 dxe4 18. Bxe4 $16) (13... Bb7 $5 $14) 14. b5 $1 $16
{[%emt 0:04:22] Kramnik surely saw this (it is just too thematic), but he must
have overlooked something at a slightly later moment.} (14. a3 axb4 15. axb4
Rxa1 16. Qxa1 bxc5 17. bxc5 e5 $11) 14... bxc5 {[%emt 0:00:31]} (14... Bb7 15.
bxc6 Bxc6 16. cxb6 Qxb6 17. Qe2 $16 {[%cal Ga1b1,Gf1c1]}) 15. bxc6 {[%emt 0:00:
07]} Nb8 {[%emt 0:03:05]} 16. Bb5 {[%emt 0:04:10]} Ba6 {[%emt 0:07:48]} 17. a4
$16 {[%emt 0:05:06] Kramnik must have thought he would get the c6-pawn without
any problems, underestimating White's dynamic potential.} Qc8 {[%emt 0:00:31]}
(17... c4 18. exf4 Nxf4 19. Ne2 {[%cal Gc6c7,Gh2c7]} Bd6 20. Nxf4 Bxf4 21. Bxf4
Rxf4 22. h5 gxh5 23. Ne5 $18 {[%csl Ga8,Gb8,Rg8]}) 18. dxc5 {[%emt 0:02:29]}
Nxc6 {[%emt 0:13:23]} 19. Nxd5 $1 {[%emt 0:08:20] The point.} exd5 {[%emt 0:00:
47]} 20. Qxd5+ {[%emt 0:00:08]} Kh8 {[%emt 0:01:51]} 21. Qxc6 {[%emt 0:00:09]}
Qxc6 {[%emt 0:01:58]} 22. Bxc6 {[%emt 0:00:06]} Rac8 {[%emt 0:00:04]} 23. Bb5 {
[%emt 0:03:33]} Bxb5 {[%emt 0:00:55]} 24. axb5 {[%emt 0:00:05]} Bxc5 {[%emt 0:
00:03]} 25. Rxa5 {[%emt 0:04:01]} fxe3 {[%emt 0:00:14]} 26. fxe3 {[%emt 0:00:
05]} Bxe3+ {[%emt 0:00:18]} 27. Kh1 $16 {[%emt 0:00:05] Black has limited the
damage to the loss of just one pawn. Still, that pawn is quite dangerous.} Rc2
$2 {[%emt 0:11:36] This counterplay will fail.} ({It would have made sense to
stop the pawn somehow.} 27... Nf6 28. Rb1 Nd5 $16) 28. Rb1 $18 {[%emt 0:05:31]}
Rfc8 {[%emt 0:00:11]} 29. Raa1 {[%emt 0:05:52]} Bb6 {[%emt 0:00:01]} 30. Be5+ {
[%emt 0:05:35]} Kg8 {[%emt 0:00:03]} 31. Ra6 $18 {[%emt 0:00:19] There is no
way to stop the pawn now.} Be3 {[%emt 0:00:46]} 32. b6 {[%emt 0:04:22]} Rc1+ {
[%emt 0:00:09]} 33. Rxc1 {[%emt 0:00:05]} Rxc1+ {[%emt 0:00:02]} 34. Kh2 {
[%emt 0:00:09]} Rb1 {[%emt 0:00:09]} 35. g4 $1 {[%emt 0:03:42] The start of a
well-calculated execution.} Bf4+ {[%emt 0:03:10]} 36. Kg2 {[%emt 0:02:04]} Bxe5
{[%emt 0:00:49]} 37. Nxe5 {[%emt 0:00:06]} Nf4+ {[%emt 0:01:21]} 38. Kf3 {
[%emt 0:00:20]} Ne6 {[%emt 0:02:29]} (38... Nd5 39. Ra8+ Kg7 40. Ra7+ Kf6 41.
Nd7+ Ke6 42. b7 $18) 39. b7 {[%emt 0:05:20]} Rb3+ {[%emt 0:01:23]} 40. Kf2 {
[%emt 0:00:00]} Rb2+ {[%emt 0:00:00]} 41. Ke3 {[%emt 0:02:01]} 1-0

[Event "Metz op 31th"]
[Site "Metz"]
[Date "2013.04.21"]
[Round "3"]
[White "Manolache, Marius"]
[Black "Klek, Hanna Marie"]
[Result "1/2-1/2"]
[ECO "D37"]
[WhiteElo "2501"]
[BlackElo "2332"]
[Annotator "Metz Alekhine/Primel,D"]
[PlyCount "180"]
[EventDate "2013.04.20"]
[EventType "swiss"]
[EventRounds "9"]
[EventCountry "FRA"]
[SourceTitle "EXT 2016"]
[Source "ChessBase"]
[SourceDate "2015.10.08"]
[SourceVersion "1"]
[SourceVersionDate "2015.10.08"]
[SourceQuality "1"]
[TimeControl "40/5400:1800+30"]
[WhiteClock "1:30:00"]
[BlackClock "1:30:00"]

1. d4 d5 2. Nf3 Nf6 3. c4 e6 4. Nc3 Be7 5. e3 O-O 6. Ne5 $6 {[%cal Gf2f4]
Rarement joué aussi tôt} (6. Bd3 $142 c6 7. O-O (7. Qc2)) (6. b3 Nbd7 7. Bb2
b6 8. Bd3 Bb7 9. O-O c5 10. cxd5 Nxd5 11. Nxd5 Bxd5 12. Qe2 cxd4 13. Nxd4 Nc5
14. Bc4 Bf6 15. Rfd1 Qd7 16. Nf5 Bxb2 17. Qxb2 exf5 18. Rxd5 Qc8 19. Rc1 g6 20.
b4 Ne4 21. f3 Ng5 22. e4 Qe8 23. Qd2 Nxe4 24. fxe4 Qxe4 25. Rd4 Qe7 26. Re1 Qc7
27. Rh4 h5 28. Rd4 Rad8 29. Rd1 Rxd4 30. Qxd4 Qe7 31. a3 Rc8 32. h3 h4 33. Bd5
Qg5 34. Bxf7+ {1-0 (34) Radjabov,T (2713)-Wang,H (2735) Beijing 2013}) 6... c5
(6... c6 7. Bd3 Nbd7 8. f4) (6... b6 7. Be2 Bb7) 7. cxd5 exd5 8. Bd3 Nc6 9. O-O
h6 $146 (9... Qc7 10. Nxc6 bxc6 11. b3 Ng4 12. g3 Re8 13. Qc2 h6 14. Ne2 cxd4
15. exd4 Nf6 16. Bf4 Qd7 17. Rac1 Qh3 18. f3 Ba3 19. Rce1 Qd7 20. Be5 Be7 21.
g4 a5 22. Ng3 Ba6 23. Bxa6 Rxa6 24. Nf5 Bb4 25. Bxf6 Rxe1 26. Rxe1 Bxe1 27.
Bxg7 Qe6 28. Bxh6 Bb4 29. Bf4 Ra8 30. Be5 Bf8 31. Ng3 Qg6 32. Qc1 Bh6 33. Qd1
Bg7 34. Nf5 Bf8 35. h4 Qe6 36. h5 f6 37. Bf4 Re8 38. Be3 Bd6 39. Kg2 {Georgiev,
V (2535)-Goletiani,R (2371) Schaumburg 2006 1-0}) 10. Nxc6 bxc6 11. b3 {
L'ouverture des Blancs n'est pas trés ambitieuse mais le GMI a probablement
voulu sortir rapidement de la théorie sa jeune adversaire qui est souvent
bien préparée.} Nd7 $5 {[%cal Ge7f6]} (11... a5 12. Bb2 Ba6 {[%csl Rb2]}) (
11... Be6 12. Bb2 c4 $1 {[%cal Ga8b8]} 13. Bc2 Rb8 $132) 12. Ne2 Re8 (12... Qb6
$1 {Profitant du fait que le Ne2 ne menace plus un coup intermédiaire Na4} 13.
Qc2 Ba6 $11 {[%csl Rc1]}) 13. Qc2 Qb6 14. Bb2 cxd4 (14... Rb8 $5 {[%cal Gc5c4]}
) 15. Bxd4 c5 $1 {Profitant du gain de temps pour mettre les P pendants sur
les cases optimales} 16. Bc3 Bb7 $11 17. Rfd1 Bf6 18. Bf5 Nf8 19. Bxf6 Qxf6 20.
Ng3 {[%cal Gg3h5,Gh5f6,Gh5g7,Gg3f5]} Re5 21. Bh3 Bc8 $1 {Rentre dans une
préfinale égale} 22. Bxc8 Rxc8 23. Rac1 h5 $1 {[%csl Rg3]} 24. h3 h4 25. Nf1
{[%cal Gf1d2,Gd2f3]} Qe6 (25... Ne6 $5 {[%cal Ge6c5,Ge6g5,Gg5f3]} 26. Nd2 Rg5
27. Qd3 (27. Nf3 Qxf3) 27... Rd8) 26. Nd2 Nd7 27. Nf3 Rh5 28. Rd4 $1 Ne5 29.
Nxe5 (29. Nxh4 g6 30. Rf4 g5 31. Qf5 $13) 29... Qxe5 {Sans pièces légéres,
la finale sera difficile à gagner pour le GMI} 30. Qd1 g6 31. Rf4 Rc7 32. Qd2
Qe7 33. Qa5 Re5 (33... Kg7) 34. Rxh4 Rd7 35. Qc3 d4 $1 36. exd4 Red5 37. g3
cxd4 38. Qd3 Rc5 39. Rc4 Qe1+ 40. Kg2 Rf5 41. Rc2 Qe5 42. Re4 Qf6 43. b4 $1 {
[%csl Gb4]} Kg7 44. b5 Qb6 45. a4 Rc5 46. Ree2 Qb7+ 47. Kg1 (47. Kh2) 47... Rh5
48. h4 Qd5 (48... g5 $2 49. Rc6 $1) 49. f4 Qd6 50. Rc6 $1 Qb4 51. Rc4 Qd6 52.
Re4 $36 {[%csl Rd4] Les Blancs ont progressé en mobilisant l'aile-dame et en
faisant le siège de la faiblesse "d4" mais il sera difficile d'échanger une
R et une Q pour avoir une finale gagnante} Rd5 53. Kg2 Qf6 54. Re2 $1 {[%cal
Ge2d2]} (54. Rc6 $143 Qf5 $1 {[%cal Gf5d3]}) 54... Qd6 55. Rd2 Qf6 56. Rc6 Qe7
57. Kf3 Qb4 (57... Qe1) 58. Rc4 Qe7 59. Re2 Qf6 60. Rc8 Rd8 61. Rc7 (61. Rxd8
Qxd8 62. Rc2 Qe7 63. Rc6) 61... R8d7 62. Rc8 Rd8 63. Rc6 R8d6 64. Rec2 Qe7 65.
a5 Qe1 $1 $132 {[%csl Ra5,Rf3][%cal Ge1a5,Ge1h1]} 66. a6 {[%csl Ra7][%cal
Gc6c7] La majorité perd sa mobilité mais les Blancs ont crée une faiblesse
"a7" et ils menacent maintenant Rc7 avec pression} (66. Rxd6 Rxd6 67. Rc7 (67.
a6 Qh1+ 68. Kg4 Kh6 {[%cal Gf7f5]} 69. f5) 67... Qxa5 68. Qc4 Rf6 69. Rd7 Qe1
70. Qxd4 {[%csl Rf6]}) 66... Qh1+ 67. Kf2 Qh2+ 68. Kf1 Qh1+ 69. Kf2 Qh2+ 70.
Kf3 Qh1+ 71. Rg2 Rd7 72. Qd2 Qf1+ 73. Rf2 Qxb5 {Retour de baton pour les
Blancs qui ont voulu forcer le gain} 74. Qc2 Re7 75. Kg2 Re3 76. Rc7 Rd7 77.
Rxd7 Qxd7 78. Qc5 Rc3 79. Qe5+ f6 80. Qe1 Qc6+ 81. Kh2 Rc1 82. Qe7+ Kg8 83. Rg2
Rc2 84. Rxc2 Qxc2+ 85. Kh3 Qc8+ 86. Kh2 Qxa6 87. f5 $1 gxf5 88. Qe8+ Kg7 89.
Qe7+ Kg8 90. Qe8+ Kg7 1/2-1/2